bitfinex/quotes_BTCUSD_20250110
["timestamp","ask_amount","ask_price","bid_price","bid_amount"]
[1736490537771,0.00402162,94131.0,94130.0,0.73006267]
[1736490538136,0.00402162,94131.0,94130.0,0.73906267]
[1736490538351,0.00402162,94131.0,94130.0,1.0110893]
[1736490538991,0.00402162,94131.0,94130.0,1.0090893]
[1736490539315,0.00402162,94131.0,94130.0,0.90778954]
[1736490547358,0.00402162,94131.0,94130.0,0.87463508]
[1736490547867,0.00065005,94131.0,94130.0,0.87463508]
[1736490548917,0.00065005,94131.0,94130.0,0.90775688]
[1736490549723,0.00065005,94131.0,94130.0,0.87463508]
[1736490550131,0.00065005,94131.0,94130.0,0.89498908]
[1736490550446,0.00065005,94131.0,94130.0,0.92811244]
[1736490550606,0.00065005,94131.0,94130.0,0.89498908]
[1736490551013,0.00065005,94131.0,94130.0,0.90250908]
[1736490551301,0.00065005,94131.0,94130.0,0.93563359]
[1736490553368,0.00065005,94131.0,94130.0,0.90250908]
[1736490555245,0.00065005,94131.0,94130.0,0.45583552]
[1736490555446,0.00065005,94131.0,94130.0,0.30535409]
[1736490555780,0.08295005,94131.0,94130.0,0.30535409]
[1736490556520,0.08295005,94131.0,94130.0,0.29635409]
[1736490557943,0.08295005,94131.0,94130.0,0.29335409]
[1736490558143,0.08295005,94131.0,94130.0,0.28435407]
[1736490559187,0.08395005,94131.0,94130.0,0.28435407]
[1736490560262,0.08395005,94131.0,94124.0,0.212484]
[1736490560620,0.08395005,94131.0,94124.0,0.424969]
[1736490561029,0.08295005,94131.0,94124.0,0.424969]
[1736490561229,0.0484,94130.0,94124.0,0.212484]
[1736490561435,0.0802,94129.0,94124.0,0.424969]
[1736490563218,0.0802,94129.0,94124.0,0.41596898]
[1736490566238,0.09681234,94129.0,94124.0,0.41596898]
[1736490567274,0.09681234,94129.0,94124.0,0.20348398]
[1736490567691,0.09681234,94129.0,94124.0,0.20148398]
[1736490568091,0.0802,94129.0,94124.0,0.19248396]
[1736490569109,0.0802,94129.0,94120.0,0.212493]
[1736490570802,0.0802,94129.0,94124.0,0.212484]
[1736490571811,0.0802,94129.0,94120.0,0.212493]
[1736490572024,0.0798,94127.0,94115.0,0.212505]
[1736490572226,0.0798,94125.0,94115.0,0.0001143]
[1736490573339,0.0798,94125.0,94111.0,0.41614228]
[1736490573962,0.212485,94124.0,94111.0,0.20362828]
[1736490574174,0.0798,94125.0,94111.0,0.20362828]
[1736490575483,0.0808,94125.0,94116.0,0.212503]
[1736490575887,0.11871964,94125.0,94116.0,0.212503]
[1736490576270,0.11871964,94125.0,94112.0,0.212512]
[1736490576494,0.11771964,94125.0,94112.0,0.212512]
[1736490577983,0.11871964,94125.0,94112.0,0.212512]
[1736490578184,0.11871964,94125.0,94112.0,0.20351198]
[1736490578360,0.03747133,94124.0,94112.0,0.20351198]
[1736490579186,0.03747133,94124.0,94112.0,0.41602398]
[1736490579850,0.03747133,94124.0,94112.0,0.20351198]
[1736490580232,0.03747133,94124.0,94112.0,0.41602398]
[1736490580437,0.0798,94125.0,94117.0,0.2125]
[1736490580647,0.07990402,94125.0,94117.0,0.2125]
[1736490580815,0.0779,94123.0,94106.0,0.212524]
[1736490581015,0.0779,94122.0,94106.0,0.212524]
[1736490581648,0.212492,94121.0,94104.0,0.21253]
[1736490581803,0.0779,94120.0,94104.0,0.21253]
[1736490582004,0.0779,94120.0,94109.0,0.212519]
[1736490583199,0.0779,94120.0,94109.0,0.20351898]
[1736490584849,0.212495,94120.0,94109.0,0.20351898]
[1736490585053,0.0779,94119.0,94109.0,0.20351898]
[1736490585463,0.0779,94118.0,94109.0,0.20351898]
[1736490588204,0.0779,94118.0,94109.0,0.19451896]
[1736490589663,0.0779,94116.0,94109.0,0.19451896]
[1736490590900,0.0779,94116.0,94109.0,0.19551896]
[1736490591081,0.0779,94116.0,94109.0,0.19451896]
[1736490591309,0.09557488,94116.0,94109.0,0.19451896]
[1736490593253,0.09557488,94116.0,94109.0,0.18551894]
[1736490593465,0.09757488,94116.0,94109.0,0.18551894]
[1736490594059,0.09557488,94116.0,94109.0,0.18551894]
[1736490594261,0.0799,94116.0,94109.0,0.18551894]
[1736490596318,0.0799,94116.0,94096.0,0.01565292]
[1736490596529,0.0799,94116.0,94105.0,0.212527]
[1736490597098,0.0779,94116.0,94105.0,0.212527]
[1736490597605,0.0799,94116.0,94105.0,0.212527]
[1736490597829,0.0799,94116.0,94105.0,0.425055]
[1736490598176,0.01621734,94115.0,94105.0,0.41605498]
[1736490598590,0.0799,94116.0,94106.0,0.212526]
[1736490598969,0.0779,94116.0,94106.0,0.212526]
[1736490599171,0.0779,94116.0,94107.0,0.212522]
[1736490600512,0.0779,94116.0,94103.0,0.212532]
[1736490600513,0.002,94115.0,94103.0,0.212532]
[1736490600715,0.0766,94114.0,94103.0,0.212532]
[1736490600891,0.03713804,94113.0,94103.0,0.212532]
[1736490601566,0.03713804,94113.0,94086.0,8.52e-05]
[1736490601567,0.0766,94109.0,94089.0,0.212563]
[1736490601773,0.0763,94102.0,94090.0,0.01530336]
[1736490601949,0.0763,94102.0,94091.0,0.21256]
[1736490602164,0.03727994,94101.0,94091.0,0.21056]
[1736490603416,0.03727994,94101.0,94091.0,0.21156]
[1736490603621,0.03727994,94101.0,94091.0,0.42312]
[1736490604037,0.03727994,94101.0,94091.0,0.42512]
[1736490605055,0.03727994,94101.0,94091.0,0.21256]
[1736490605233,0.03732059,94100.0,94091.0,0.21256]
[1736490606254,0.03732059,94100.0,94091.0,0.21056]
[1736490606684,0.03732059,94100.0,94091.0,0.21256]
[1736490606893,0.079,94092.0,94091.0,0.002]
[1736490608198,0.212537,94101.0,94090.0,0.20555998]
[1736490608199,0.079,94100.0,94090.0,0.20555998]
[1736490608411,0.079,94100.0,94090.0,0.20560863]
[1736490608844,0.079,94100.0,94090.0,0.41816863]
[1736490609047,0.079,94100.0,94095.0,0.212551]
[1736490609696,0.079,94100.0,94091.0,0.21256]
[1736490610518,0.03284084,94099.0,94090.0,4.865e-05]
[1736490610739,0.24538384,94099.0,94090.0,4.865e-05]
[1736490610959,0.0829,94098.0,94090.0,4.865e-05]
[1736490611506,0.0829,94098.0,94091.0,0.21256]
[1736490611720,0.03671492,94097.0,94091.0,0.21256]
[1736490613211,0.03671492,94097.0,94091.0,0.20355998]
[1736490613407,0.03671492,94097.0,94090.0,4.865e-05]
[1736490614036,0.0829,94098.0,94090.0,4.865e-05]
[1736490614395,0.001,94097.0,94090.0,4.865e-05]
[1736490614995,0.0829,94098.0,94089.0,0.212564]
[1736490615196,0.08394892,94098.0,94089.0,0.212564]
[1736490616060,0.08294892,94098.0,94089.0,0.212564]
[1736490616582,0.11618465,94098.0,94089.0,0.212564]
[1736490616994,0.08294892,94098.0,94089.0,0.212564]
[1736490617912,0.001,94097.0,94089.0,0.212564]
[1736490618118,0.001,94097.0,94089.0,0.20356398]
[1736490618325,0.08294892,94098.0,94089.0,0.20356398]
[1736490618676,0.08394892,94098.0,94089.0,0.20356398]
[1736490619125,0.08294892,94098.0,94089.0,0.20356398]
[1736490619388,0.212555,94094.0,94082.0,0.212578]
[1736490619862,0.03472091,94097.0,94082.0,0.212578]
[1736490621253,0.03472091,94097.0,94082.0,0.21224]
[1736490621461,0.04067006,94096.0,94082.0,0.21224]
[1736490621690,0.25321806,94096.0,94082.0,0.21224]
[1736490623044,0.25421806,94096.0,94082.0,0.21224]
[1736490623216,0.25421806,94096.0,94082.0,0.20323998]
[1736490624180,0.001,94096.0,94086.0,0.212569]
[1736490624391,0.001,94096.0,94075.0,0.01481994]
[1736490624605,0.001,94096.0,94091.0,0.212559]
[1736490624818,0.001,94096.0,94084.0,0.0464]
[1736490625023,0.001,94096.0,94092.0,0.31685576]
[1736490625247,4.892e-05,94098.0,94095.0,0.21255]
[1736490625455,4.892e-05,94098.0,94097.0,0.212546]
[1736490625667,4.892e-05,94098.0,94097.0,0.70119983]
[1736490625875,4.892e-05,94098.0,94097.0,0.78209983]
[1736490626086,4.892e-05,94098.0,94097.0,0.88639959]
[1736490626294,4.892e-05,94098.0,94097.0,0.78209983]
[1736490627931,4.892e-05,94098.0,94097.0,0.78609983]
[1736490628588,4.892e-05,94098.0,94097.0,0.68961983]
[1736490628793,4.892e-05,94098.0,94097.0,0.61271983]
[1736490629203,4.892e-05,94098.0,94097.0,0.61419983]
[1736490629415,4.892e-05,94098.0,94097.0,0.60119983]
[1736490629626,4.892e-05,94098.0,94097.0,0.60419983]
[1736490629830,4.892e-05,94098.0,94097.0,0.61319983]
[1736490630040,4.892e-05,94098.0,94097.0,0.60419983]
[1736490630514,4.892e-05,94098.0,94097.0,0.61019983]
[1736490630693,4.892e-05,94098.0,94097.0,0.60419983]
[1736490630895,4.892e-05,94098.0,94097.0,0.61019983]
[1736490631417,4.892e-05,94098.0,94097.0,0.60719983]
[1736490631820,4.892e-05,94098.0,94097.0,0.60919983]
[1736490632254,4.892e-05,94098.0,94097.0,0.60719983]
[1736490632649,4.892e-05,94098.0,94097.0,0.60919983]
[1736490634034,4.892e-05,94098.0,94097.0,0.50490007]
[1736490635103,4.892e-05,94098.0,94097.0,0.220546]
[1736490635313,4.892e-05,94098.0,94097.0,0.214546]
[1736490635505,4.892e-05,94098.0,94097.0,0.212546]
[1736490635731,4.892e-05,94098.0,94097.0,0.218546]
[1736490635934,4.892e-05,94098.0,94097.0,0.21724839]
[1736490636137,4.892e-05,94098.0,94097.0,0.21924839]
[1736490636332,4.892e-05,94098.0,94097.0,0.22224839]
[1736490636511,4.892e-05,94098.0,94097.0,0.22024839]
[1736490637690,4.892e-05,94098.0,94097.0,0.32454815]
[1736490638136,4.892e-05,94098.0,94097.0,0.31654813]
[1736490638556,4.892e-05,94098.0,94097.0,0.31554813]
[1736490638788,4.892e-05,94098.0,94097.0,0.31254813]
[1736490638969,4.892e-05,94098.0,94097.0,0.31754813]
[1736490642652,4.892e-05,94098.0,94097.0,0.31654813]
[1736490642861,4.892e-05,94098.0,94097.0,0.20824837]
[1736490643069,4.892e-05,94098.0,94097.0,0.20924837]
[1736490643280,4.892e-05,94098.0,94097.0,0.20024835]
[1736490643601,4.892e-05,94098.0,94097.0,0.20324835]
[1736490644239,4.892e-05,94098.0,94097.0,0.20224835]
[1736490644665,4.892e-05,94098.0,94097.0,0.20324835]
[1736490644943,4.892e-05,94098.0,94097.0,0.20024835]
[1736490645169,4.892e-05,94098.0,94097.0,0.20224835]
[1736490645380,4.892e-05,94098.0,94097.0,0.20324835]
[1736490645593,4.892e-05,94098.0,94097.0,0.20024835]
[1736490645748,4.892e-05,94098.0,94097.0,0.20324835]
[1736490647368,4.892e-05,94098.0,94097.0,0.00870239]
[1736490647571,0.08074892,94098.0,94097.0,0.00870239]
[1736490647782,0.08074892,94098.0,94097.0,0.22024839]
[1736490647985,0.08882381,94098.0,94097.0,0.00470239]
[1736490648188,0.08882381,94098.0,94090.0,0.212562]
[1736490648400,0.30136781,94098.0,94097.0,0.003]
[1736490648607,0.30136781,94098.0,94089.0,0.00670237]
[1736490648608,0.08882381,94098.0,94089.0,0.00670237]
[1736490648819,0.03382282,94097.0,94089.0,0.00670237]
[1736490649046,0.03382282,94097.0,94090.0,0.212562]
[1736490649233,0.03382282,94097.0,94089.0,0.00670237]
[1736490649234,0.11757337,94090.0,94089.0,0.00670237]
[1736490649666,0.16497337,94090.0,94089.0,0.00670237]
[1736490650378,0.26927313,94090.0,94089.0,0.00670237]
[1736490652122,0.28299418,94090.0,94089.0,0.00670237]
[1736490656912,0.28599418,94090.0,94089.0,0.00670237]
[1736490657696,0.43599418,94090.0,94089.0,0.00670237]
[1736490658767,0.43299418,94090.0,94089.0,0.00670237]
[1736490658923,0.45899418,94090.0,94089.0,0.00670237]
[1736490659267,0.45999335,94090.0,94089.0,0.00670237]
[1736490659514,0.45699335,94090.0,94089.0,0.00670237]
[1736490659682,0.46034577,94090.0,94089.0,0.00670237]
[1736490659914,0.45899418,94090.0,94089.0,0.00670237]
[1736490660444,0.45599418,94090.0,94089.0,0.00670237]
[1736490661051,0.45699335,94090.0,94089.0,0.00670237]
[1736490661257,0.55734577,94090.0,94089.0,0.00670237]
[1736490661486,0.55734577,94090.0,94089.0,0.00770237]
[1736490661803,0.56134577,94090.0,94089.0,0.00770237]
[1736490662405,0.55699335,94090.0,94089.0,0.00770237]
[1736490662811,0.56099335,94090.0,94089.0,0.00770237]
[1736490663562,0.55999418,94090.0,94089.0,0.00770237]
[1736490664206,1.37860818,94090.0,94089.0,0.00770237]
[1736490664663,1.37960772,94090.0,94089.0,0.00770237]
[1736490665096,1.70660772,94090.0,94089.0,0.00770237]
[1736490666291,1.80660772,94090.0,94089.0,0.00770237]
[1736490666702,0.03687337,94075.0,94074.0,8.52e-05]
[1736490666883,0.79020647,94075.0,94074.0,8.52e-05]
[1736490668413,0.79820647,94075.0,94074.0,0.0010852]
[1736490669042,0.79920647,94075.0,94074.0,0.0010852]
[1736490669266,0.79120647,94075.0,94074.0,8.52e-05]
[1736490669474,0.79820647,94075.0,94074.0,0.0010852]
[1736490669654,1.03139047,94075.0,94074.0,0.0010852]
[1736490669828,0.98545847,94075.0,94074.0,0.0010852]
[1736490670028,0.80220647,94075.0,94074.0,0.0010852]
[1736490670370,0.91376047,94075.0,94074.0,0.0010852]
[1736490670926,0.91376047,94075.0,94049.0,8.53e-05]
[1736490670927,0.13687337,94054.0,94049.0,8.53e-05]
[1736490671129,0.37472676,94054.0,94049.0,8.53e-05]
[1736490671333,0.52572647,94054.0,94049.0,8.53e-05]
[1736490671753,0.52472676,94054.0,94049.0,8.53e-05]
[1736490672170,0.52772676,94054.0,94049.0,8.53e-05]
[1736490672375,0.73751642,94054.0,94049.0,8.53e-05]
[1736490672770,0.74751642,94054.0,94053.0,0.0010853]
[1736490673194,0.03687337,94030.0,94029.0,0.00668178]
[1736490673808,0.03687337,94021.0,94016.0,0.0776]
[1736490674011,0.03687337,94017.0,94016.0,0.0776]
[1736490674435,0.03687337,94015.0,94014.0,0.04274178]
[1736490675073,0.24962037,94008.0,94007.0,4.069e-05]
[1736490675490,0.50392013,94008.0,94007.0,4.069e-05]
[1736490675931,0.362747,94008.0,94007.0,4.069e-05]
[1736490676157,0.24962037,94008.0,94007.0,4.069e-05]
[1736490676604,0.00014657,94015.0,94007.0,0.00104069]
[1736490676605,0.03687337,94010.0,94007.0,0.00104069]
[1736490676820,0.03687337,94014.0,94007.0,0.00104069]
[1736490677014,0.15,94018.0,94007.0,0.00104069]
[1736490677222,4.895e-05,94025.0,94007.0,4.069e-05]
[1736490677423,0.212716,94022.0,94015.0,8.53e-05]
[1736490677627,0.15,94021.0,94015.0,8.53e-05]
[1736490678041,4.895e-05,94025.0,94015.0,8.53e-05]
[1736490678293,4.895e-05,94025.0,94021.0,0.212717]
[1736490678450,4.895e-05,94025.0,94022.0,0.10536319]
[1736490678655,4.895e-05,94025.0,94022.0,0.10429976]
[1736490679278,4.895e-05,94025.0,94017.0,0.0753]
[1736490679482,4.895e-05,94025.0,94015.0,0.0010853]
[1736490679694,0.2339876,94024.0,94015.0,0.0010853]
[1736490679897,0.212726,94018.0,94015.0,8.53e-05]
[1736490681542,0.425452,94018.0,94015.0,8.53e-05]
[1736490681763,0.212718,94021.0,94015.0,0.0020853]
[1736490681965,4.895e-05,94025.0,94015.0,0.0020853]
[1736490682171,4.895e-05,94025.0,94015.0,0.2148163]
[1736490682373,4.895e-05,94025.0,94023.0,0.212711]
[1736490683007,4.895e-05,94025.0,94024.0,0.08336344]
[1736490683214,4.895e-05,94025.0,94024.0,0.07436342]
[1736490683438,4.895e-05,94025.0,94024.0,0.17972661]
[1736490685664,0.00104895,94025.0,94024.0,0.17972661]
[1736490685871,4.895e-05,94025.0,94024.0,0.17972661]
[1736490686072,4.895e-05,94025.0,94024.0,0.18372661]
[1736490687384,0.00104895,94025.0,94024.0,0.004]
[1736490687748,4.895e-05,94025.0,94024.0,0.004]
[1736490688150,0.00104895,94025.0,94016.0,0.212729]
[1736490688355,0.00104895,94025.0,94017.0,0.10429976]
[1736490688356,4.895e-05,94025.0,94017.0,0.10429976]
[1736490688548,4.895e-05,94025.0,94024.0,0.004]
[1736490688743,0.00104895,94025.0,94024.0,0.004]
[1736490688994,4.895e-05,94025.0,94017.0,0.10536322]
[1736490690168,0.212711,94024.0,94017.0,0.10729976]
[1736490690377,0.02232334,94025.0,94017.0,0.10729976]
[1736490690577,0.212711,94024.0,94017.0,0.10729976]
[1736490690785,0.02132334,94025.0,94017.0,0.10729976]
[1736490691007,0.212711,94024.0,94017.0,0.10729976]
[1736490691223,0.02232334,94025.0,94017.0,0.10729976]
[1736490691569,4.895e-05,94025.0,94015.0,8.53e-05]
[1736490691785,4.895e-05,94025.0,94017.0,0.003]
[1736490692822,0.425423,94024.0,94015.0,8.53e-05]
[1736490693035,0.425423,94024.0,94017.0,0.001]
[1736490693618,0.212711,94024.0,94017.0,0.001]
[1736490694043,0.212723,94019.0,94017.0,0.001]
[1736490694367,0.212723,94019.0,94015.0,8.53e-05]
[1736490694792,0.212713,94023.0,94015.0,0.0020853]
[1736490695000,0.212726,94018.0,94015.0,0.0020853]
[1736490695208,0.212726,94018.0,94015.0,8.53e-05]
[1736490695628,0.212726,94018.0,94015.0,0.0010853]
[1736490695968,0.4680008,94018.0,94015.0,8.53e-05]
[1736490696181,0.212729,94016.0,94015.0,8.53e-05]
[1736490696406,0.212729,94016.0,94015.0,0.0020853]
[1736490697343,0.362729,94016.0,94015.0,0.0020853]
[1736490697610,0.40557119,94016.0,94015.0,0.0020853]
[1736490698140,0.50987095,94016.0,94015.0,8.53e-05]
[1736490698286,0.212774,93997.0,93983.0,0.00756]
[1736490698509,0.212783,93993.0,93984.0,0.10429976]
[1736490698739,0.0212783,93992.0,93984.0,0.10429976]
[1736490698922,0.212779,93995.0,93984.0,0.10429976]
[1736490699324,0.14814195,94016.0,93984.0,0.10429976]
[1736490699526,0.14814195,94016.0,93977.0,0.05722372]
[1736490699527,0.1,94005.0,93969.0,8.53e-05]
[1736490699726,0.212829,93972.0,93970.0,0.10429976]
[1736490699955,0.212813,93980.0,93970.0,0.10429976]
[1736490700167,0.212805,93983.0,93970.0,0.10429976]
[1736490700352,0.15,93989.0,93970.0,0.10429976]
[1736490700530,0.0768,93978.0,93969.0,0.00057411]
[1736490700721,0.212821,93976.0,93969.0,0.00057411]
[1736490701137,0.001,93980.0,93969.0,0.00057411]
[1736490701378,0.00233022,93980.0,93969.0,0.00057411]
[1736490701712,0.0425488,93979.0,93969.0,0.00057411]
[1736490701931,0.00133013,93980.0,93969.0,0.00057411]
[1736490702146,0.00133013,93980.0,93969.0,0.00157411]
[1736490702381,0.212799,93986.0,93969.0,0.21440811]
[1736490702591,0.212799,93986.0,93969.0,0.00057411]
[1736490703182,0.212802,93984.0,93969.0,0.00157411]
[1736490703399,0.04402322,93983.0,93969.0,0.00157411]
[1736490703619,0.21282,93976.0,93969.0,0.00157411]
[1736490703841,0.01336013,93995.0,93969.0,0.00157411]
[1736490703842,0.212808,93981.0,93969.0,0.00157411]
[1736490704042,0.00133011,93980.0,93970.0,0.10429976]
[1736490704244,0.00133001,93994.0,93970.0,0.31819685]
[1736490704417,0.22203001,93993.0,93970.0,0.52996576]
[1736490704644,0.001,93986.0,93977.0,0.212817]
[1736490704849,0.21275,94007.0,93988.0,0.21279]
[1736490704963,0.00132981,94006.0,93988.0,0.21279]
[1736490705164,0.212754,94005.0,93988.0,0.21279]
[1736490705365,0.00132981,94004.0,93988.0,0.21279]
[1736490705645,0.002,93993.0,93988.0,0.21279]
[1736490705833,0.002,93993.0,93972.0,0.425656]
[1736490706034,0.15132996,94002.0,93974.0,0.212824]
[1736490706187,0.212795,93987.0,93975.0,0.10429976]
[1736490706383,0.212792,93989.0,93970.0,0.212832]
[1736490706611,0.00133003,93988.0,93971.0,0.10429976]
[1736490707063,0.213797,93986.0,93971.0,0.10429976]
[1736490707267,0.212802,93984.0,93971.0,0.10429976]
[1736490707423,0.04412294,93983.0,93971.0,0.10429976]
[1736490708213,0.212806,93982.0,93971.0,0.10429976]
[1736490708433,0.15,93983.0,93970.0,0.002]
[1736490708663,0.212795,93987.0,93970.0,0.002]
[1736490708864,0.212795,93987.0,93969.0,0.00057411]
[1736490708865,0.21283,93972.0,93969.0,0.00057411]
[1736490709282,0.21283,93972.0,93971.0,0.003]
[1736490709704,0.21283,93972.0,93969.0,0.00057411]
[1736490709943,0.21283,93972.0,93969.0,0.00157411]
[1736490710121,0.42566,93972.0,93969.0,0.00157411]
[1736490711680,0.42566,93972.0,93958.0,0.20451941]
[1736490711829,0.42614935,93972.0,93958.0,0.20451941]
[1736490712036,0.42614935,93972.0,93971.0,0.001]
[1736490712570,0.42614935,93972.0,93958.0,0.20451941]
[1736490712925,0.21331935,93972.0,93958.0,0.20551941]
[1736490713230,0.00048935,93972.0,93960.0,0.20385598]
[1736490713411,0.00048935,93972.0,93967.0,0.212838]
[1736490715285,0.00048935,93972.0,93962.0,0.212852]
[1736490715499,0.00048935,93972.0,93963.0,0.10429976]
[1736490716628,0.212847,93964.0,93962.0,0.001]
[1736490716813,0.00048935,93972.0,93962.0,0.001]
[1736490717218,0.00048935,93972.0,93946.0,0.0011496]
[1736490717219,0.212836,93969.0,93954.0,0.212868]
[1736490717891,0.212848,93964.0,93951.0,0.212875]
[1736490718115,0.212848,93964.0,93946.0,0.1500853]
[1736490718116,0.425663,93971.0,93953.0,0.212872]
[1736490718331,0.212831,93971.0,93960.0,0.212856]
[1736490718525,0.212831,93971.0,93958.0,0.212858]
[1736490718725,0.212831,93971.0,93963.0,0.001]
[1736490719518,0.212843,93966.0,93963.0,0.001]
[1736490719723,0.25545934,93966.0,93958.0,0.10429976]
[1736490719896,0.212852,93962.0,93947.0,0.212885]
[1736490720071,0.425705,93962.0,93948.0,0.10429976]
[1736490720278,0.212863,93957.0,93948.0,0.10429976]
[1736490720681,0.00048935,93972.0,93948.0,0.10429976]
[1736490720914,0.212831,93971.0,93956.0,0.212865]
[1736490721179,0.212833,93970.0,93956.0,0.31716476]
[1736490721415,0.212833,93970.0,93957.0,0.10429976]
[1736490721621,0.212831,93971.0,93958.0,0.00106419]
[1736490721828,0.212831,93971.0,93959.0,0.10429976]
[1736490722005,0.00048935,93972.0,93960.0,0.212856]
[1736490722207,0.00048935,93972.0,93961.0,0.10429976]
[1736490722409,0.00048935,93972.0,93961.0,0.10536386]
[1736490722859,0.212831,93971.0,93961.0,0.10429976]
[1736490723027,0.212833,93970.0,93952.0,0.212874]
[1736490723232,0.212833,93970.0,93953.0,0.10536396]
[1736490723770,0.425667,93970.0,93953.0,0.10536396]
[1736490723983,0.212845,93965.0,93953.0,0.10429976]
[1736490724236,0.212845,93965.0,93953.0,0.09529974]
[1736490724437,0.42569,93965.0,93953.0,0.09529974]
[1736490724633,0.212847,93964.0,93953.0,0.09529974]
[1736490725250,0.04261444,93971.0,93953.0,0.09529974]
[1736490725251,0.02664355,93963.0,93953.0,0.001]
[1736490725465,0.212867,93956.0,93953.0,0.001]
[1736490725886,0.212881,93950.0,93946.0,8.53e-05]
[1736490726638,0.0758,93961.0,93946.0,8.53e-05]
[1736490726639,0.212881,93949.0,93946.0,8.53e-05]
[1736490727233,0.425762,93949.0,93946.0,8.53e-05]
[1736490727847,0.288685,93947.0,93946.0,8.53e-05]
[1736490728084,0.438685,93947.0,93946.0,8.53e-05]
[1736490728414,0.21291,93936.0,93935.0,0.00518528]
[1736490728826,0.212906,93938.0,93935.0,0.00518528]
[1736490729661,0.21339505,93938.0,93935.0,0.00518528]
[1736490730044,0.42630105,93938.0,93935.0,0.00518528]
[1736490730249,0.42630105,93938.0,93935.0,0.00618528]
[1736490730629,0.36291,93936.0,93935.0,0.00618528]
[1736490731458,0.36291,93936.0,93935.0,0.00518528]
[1736490732745,0.36391,93936.0,93935.0,0.00518528]
[1736490733147,0.15,93935.0,93911.0,0.20957896]
[1736490733353,0.151,93936.0,93913.0,0.212963]
[1736490733354,0.212932,93927.0,93913.0,0.212963]
[1736490733561,0.212932,93927.0,93915.0,0.212958]
[1736490733737,0.212932,93927.0,93916.0,0.10429976]
[1736490734617,0.00048905,93938.0,93917.0,0.212953]
[1736490734829,0.00048905,93938.0,93928.0,0.10451653]
[1736490735046,0.00048905,93938.0,93935.0,0.212913]
[1736490735232,0.00048905,93938.0,93937.0,0.211908]
[1736490735453,0.00048905,93938.0,93937.0,0.31620776]
[1736490735578,0.00048905,93938.0,93937.0,0.39340776]
[1736490736422,0.00148905,93938.0,93937.0,0.39340776]
[1736490736851,0.00048905,93938.0,93937.0,0.39340776]
[1736490737152,0.00148905,93938.0,93937.0,0.39340776]
[1736490737357,0.00048905,93938.0,93937.0,0.58780784]
[1736490737880,0.00148905,93938.0,93937.0,0.58780784]
[1736490738293,5e-08,93938.0,93937.0,0.78570784]
[1736490738445,5e-08,93938.0,93937.0,0.78970784]
[1736490738909,0.2313,93986.0,93969.0,0.212834]
[1736490739113,0.212797,93986.0,93969.0,0.23426397]
[1736490739315,0.212811,93981.0,93969.0,0.00014657]
[1736490740713,0.212799,93985.0,93969.0,0.00114657]
[1736490741045,0.0296633,93987.0,93969.0,0.00114657]
[1736490741046,0.212811,93981.0,93969.0,0.00114657]
[1736490741754,0.212811,93981.0,93969.0,0.00214657]
[1736490741956,0.0296633,93987.0,93969.0,0.00214657]
[1736490742318,0.212799,93985.0,93969.0,0.00114657]
[1736490742502,0.213799,93985.0,93969.0,0.00114657]
[1736490742750,0.077,93996.0,93969.0,0.10544633]
[1736490742964,0.21278,93994.0,93976.0,0.212818]
[1736490743390,0.21278,93994.0,93976.0,0.20381798]
[1736490743603,0.15,93995.0,93977.0,0.05209467]
[1736490743809,0.001,93985.0,93977.0,0.05209467]
[1736490744022,0.21279,93990.0,93977.0,0.05209467]
[1736490744202,0.077,93996.0,93977.0,0.05209467]
[1736490744402,0.212781,93993.0,93977.0,0.26491067]
[1736490744579,0.212781,93993.0,93978.0,0.04777397]
[1736490744789,0.212781,93993.0,93972.0,0.212829]
[1736490744993,0.425563,93993.0,93974.0,0.212824]
[1736490746184,0.428563,93993.0,93974.0,0.212824]
[1736490746394,0.425563,93993.0,93974.0,0.212824]
[1736490746821,0.428563,93993.0,93974.0,0.212824]
[1736490747717,0.428563,93993.0,93975.0,0.05300993]
[1736490747911,0.215781,93993.0,93973.0,0.10429976]
[1736490748115,0.212793,93989.0,93973.0,0.10429976]
[1736490748322,0.212793,93989.0,93974.0,0.212824]
[1736490749365,0.213793,93989.0,93974.0,0.212824]
[1736490750291,0.213793,93989.0,93974.0,0.26493393]
[1736490750942,0.213793,93989.0,93986.0,0.425592]
[1736490750943,0.001,93989.0,93986.0,0.425592]
[1736490751215,0.001,93989.0,93988.0,0.212793]
[1736490751448,0.001,93989.0,93988.0,0.31709276]
[1736490751563,0.212739,94012.0,93988.0,0.31709276]
[1736490751770,0.212739,94012.0,93990.0,0.212788]
[1736490751975,0.212739,94012.0,93991.0,0.10536355]
[1736490752192,0.212739,94012.0,93992.0,0.00768]
[1736490752380,0.212739,94012.0,93993.0,0.10429976]
[1736490752988,0.212739,94012.0,93994.0,0.212779]
[1736490753206,0.212739,94012.0,93994.0,0.20377898]
[1736490753428,0.0021708,94008.0,93994.0,0.20377898]
[1736490754220,0.0021708,94008.0,93993.0,0.10429976]
[1736490754423,0.15,94006.0,93980.0,0.00768]
[1736490754622,0.21277,93998.0,93980.0,0.11197976]
[1736490755370,0.21277,93998.0,93980.0,0.10429976]
[1736490755578,0.21277,93998.0,93980.0,0.10529976]
[1736490756093,0.21277,93998.0,93980.0,0.10429976]
[1736490756245,0.21277,93998.0,93981.0,0.212808]
[1736490757119,0.21276,94003.0,93981.0,0.212808]
[1736490757323,0.15,94004.0,93982.0,0.15749194]
[1736490757481,0.15,94006.0,93982.0,0.15855588]
[1736490757641,0.15,94004.0,93987.0,0.212793]
[1736490758046,0.212759,94003.0,93987.0,0.212793]
[1736490758269,0.212759,94003.0,93983.0,0.212804]
[1736490758478,0.212759,94003.0,93983.0,0.31710376]
[1736490758678,0.15,94004.0,93984.0,0.27121159]
[1736490759044,0.151,94004.0,93984.0,0.05841059]
[1736490759457,0.212759,94003.0,93985.0,0.212799]
[1736490759657,0.213759,94003.0,93985.0,0.212799]
[1736490759937,0.212759,94003.0,93985.0,0.212799]
[1736490760294,0.212759,94003.0,93984.0,0.212802]
[1736490760642,0.15,94004.0,93984.0,0.212802]
[1736490761542,0.22071658,94004.0,93984.0,0.212802]
[1736490761750,0.22071658,94004.0,93984.0,0.213802]
[1736490761931,0.22171658,94004.0,93984.0,0.213802]
[1736490762126,0.22171658,94004.0,93984.0,0.212802]
[1736490762627,0.212759,94003.0,93984.0,0.212802]
[1736490762912,0.22171658,94004.0,93985.0,0.212799]
[1736490763126,0.22171658,94004.0,93976.0,0.212818]
[1736490763127,0.21277,93998.0,93976.0,0.212818]
[1736490763334,0.212781,93993.0,93973.0,0.212825]
[1736490763515,0.212781,93993.0,93974.0,0.10429976]
[1736490764181,0.212792,93989.0,93984.0,0.001]
[1736490764360,0.4468632,93989.0,93984.0,0.001]